fUSD/lending_fUSD_20250502
["ID","MTS","AMOUNT","RATE_DAILY","PERIOD"]
[359598863,1746176703910,-450.0,0.00019793,2]
[359598864,1746176703933,-726.05,0.00019793,2]
[359598865,1746176703955,-239.32776593,0.00019793,2]
[359598866,1746176703977,-450.0,0.00019793,2]
[359598867,1746176703999,-450.0,0.00019793,2]
[359598868,1746176704021,-450.0,0.00019793,2]
[359598869,1746176704045,-838.395326,0.00019793,2]
[359598870,1746176704069,-450.0,0.00019793,2]
[359598871,1746176704092,-718.71,0.00019793,2]
[359598872,1746176704115,-450.0,0.00019793,2]
[359598873,1746176704139,-662.65,0.00019793,2]
[359598874,1746176704160,-297.35320756,0.00019793,2]
[359598875,1746176704182,-194.85368846,0.00019793,2]
[359598876,1746176704204,-309.06158264,0.00019793,2]
[359598877,1746176704226,-152.36410029,0.00019793,2]
[359598878,1746176704247,-450.0,0.00019793,2]
[359598879,1746176704269,-450.0,0.00019793,2]
[359598880,1746176704291,-450.0,0.00019793,2]
[359598881,1746176704313,-450.0,0.00019793,2]
[359598882,1746176704336,-450.0,0.00019793,2]
[359598883,1746176704362,-1092.8,0.00019793,2]
[359598884,1746176704388,-450.0,0.00019793,2]
[359598885,1746176704410,-673.44,0.00019793,2]
[359598886,1746176704434,-714.52,0.00019793,2]
[359598887,1746176704456,-288.06419333,0.00019793,2]
[359598888,1746176704478,-450.0,0.00019793,2]
[359598889,1746176704499,-450.0,0.00019793,2]
[359598890,1746176704520,-450.0,0.00019793,2]
[359598891,1746176704542,-450.0,0.00019793,2]
[359598892,1746176704563,-450.0,0.00019793,2]
[359598893,1746176704585,-450.0,0.00019793,2]
[359598894,1746176704607,-723.75,0.00019793,2]
[359598895,1746176704630,-450.0,0.00019793,2]
[359598896,1746176704655,-2465.61,0.00019793,2]
[359598897,1746176704677,-450.0,0.00019793,2]
[359598898,1746176704698,-450.0,0.00019793,2]
[359598899,1746176704722,-12087.47,0.00019793,2]
[359598900,1746176704742,-470.0,0.00019793,2]
[359598901,1746176704763,-780.71,0.00019793,2]
[359598902,1746176704785,-450.0,0.00019793,2]
[359598903,1746176704807,-450.0,0.00019793,2]
[359598904,1746176704828,-450.0,0.00019793,2]
[359598905,1746176704850,-4562.99,0.00019793,2]
[359598906,1746176704872,-450.0,0.00019793,2]
[359598907,1746176704893,-718.72,0.00019793,2]
[359598908,1746176704914,-450.0,0.00019793,2]
[359598909,1746176704936,-702.08,0.00019793,2]
[359598910,1746176704957,-510.3004948,0.00019793,2]
[359598911,1746176704979,-320.68280887,0.00019793,2]
[359598912,1746176705000,-450.0,0.00019793,2]
[359598913,1746176705022,-151.077856,0.00019793,2]
[359598914,1746176705043,-473.37015512,0.00019793,2]
[359598915,1746176705064,-450.0,0.00019793,2]
[359598916,1746176705086,-1024.25,0.00019793,2]
[359598917,1746176705107,-500.0,0.00019793,2]
[359598918,1746176705131,-744.35,0.00019793,2]
[359598919,1746176705153,-512.77,0.00019793,2]
[359598920,1746176705175,-188.91175319,0.00019793,2]
[359598921,1746176705196,-495.28,0.00019793,2]
[359598922,1746176705218,-857.19,0.00019793,2]
[359598923,1746176705240,-861.02,0.00019793,2]
[359598924,1746176705261,-582.79,0.00019793,2]
[359598925,1746176705282,-496.15403073,0.00019793,2]
[359598926,1746176705303,-450.0,0.00019793,2]
[359598927,1746176705324,-450.0,0.00019793,2]
[359598928,1746176705345,-450.0,0.00019793,2]
[359598929,1746176705371,-450.0,0.00019793,2]
[359598930,1746176705394,-450.0,0.00019793,2]
[359598931,1746176705416,-528.51,0.00019793,2]
[359598932,1746176705441,-450.0,0.00019793,2]
[359598933,1746176705464,-450.0,0.00019793,2]
[359598934,1746176705486,-450.0,0.00019793,2]
[359598935,1746176705507,-450.0,0.00019793,2]
[359598936,1746176705530,-450.0,0.00019793,2]
[359598937,1746176705552,-502.3,0.00019793,2]
[359598938,1746176705574,-450.0,0.00019793,2]
[359598939,1746176705595,-492.7,0.00019793,2]
[359598940,1746176705616,-699.88,0.00019793,2]
[359598941,1746176705639,-450.0,0.00019793,2]
[359598942,1746176705661,-450.0,0.00019793,2]
[359598943,1746176705682,-1275.8,0.00019793,2]
[359598944,1746176705703,-2337.16,0.00019793,2]
[359598945,1746176705724,-450.0,0.00019793,2]
[359598946,1746176705746,-450.0,0.00019793,2]
[359598947,1746176705768,-515.54,0.00019793,2]
[359598948,1746176705790,-450.0,0.00019793,2]
[359598949,1746176705812,-772.92,0.00019793,2]
[359598950,1746176705835,-3941.18,0.00019793,2]
[359598951,1746176705856,-450.0,0.00019793,2]
[359598952,1746176705879,-450.0,0.00019793,2]
[359598953,1746176705903,-448.14685447,0.00019793,2]
[359598954,1746176705925,-2065.28,0.00019793,2]
[359598955,1746176705948,-517.44,0.00019793,2]
[359598956,1746176705971,-450.0,0.00019793,2]
[359598957,1746176705993,-725.28,0.00019793,2]
[359598958,1746176706016,-566.89,0.00019793,2]
[359598959,1746176706040,-450.0,0.00019793,2]
[359598960,1746176706063,-462.66,0.00019793,2]
[359598961,1746176706087,-450.0,0.00019793,2]
[359598962,1746176706110,-450.0,0.00019793,2]
[359598963,1746176706136,-450.0,0.00019793,2]
[359598964,1746176706159,-450.0,0.00019793,2]
[359598965,1746176706182,-450.0,0.00019793,2]
[359598966,1746176706206,-450.0,0.00019793,2]
[359598967,1746176706230,-450.0,0.00019793,2]
[359598968,1746176706253,-975.7,0.00019793,2]
[359598969,1746176706275,-450.0,0.00019793,2]
[359598970,1746176706298,-450.0,0.00019793,2]
[359598971,1746176706322,-640.21,0.00019793,2]
[359598972,1746176706344,-450.0,0.00019793,2]
[359598973,1746176706371,-1976.76,0.00019793,2]
[359598974,1746176706395,-450.0,0.00019793,2]
[359598975,1746176706418,-1060.56,0.00019793,2]
[359598976,1746176706443,-450.0,0.00019793,2]
[359598977,1746176706467,-450.0,0.00019793,2]
[359598978,1746176706490,-544.28,0.00019793,2]
[359598979,1746176706514,-450.0,0.00019793,2]
[359598980,1746176706540,-450.0,0.00019793,2]
[359598981,1746176706568,-664.07,0.00019793,2]
[359598982,1746176706591,-784.97,0.00019793,2]
[359598983,1746176706615,-819.29,0.00019793,2]
[359598984,1746176706639,-659.72,0.00019793,2]
[359598985,1746176706662,-151.99235724,0.00019793,2]
[359598986,1746176706685,-450.0,0.00019793,2]
[359598987,1746176706708,-450.0,0.00019793,2]
[359598988,1746176706731,-3196.41,0.00019793,2]
[359598989,1746176706754,-450.0,0.00019793,2]
[359598990,1746176706777,-757.09,0.00019793,2]
[359598991,1746176706799,-450.0,0.00019793,2]
[359598992,1746176706822,-1763.03,0.00019793,2]
[359598993,1746176706845,-450.0,0.00019793,2]
[359598994,1746176706869,-631.78,0.00019793,2]
[359598995,1746176706897,-915.74,0.00019793,2]
[359598996,1746176706921,-450.0,0.00019793,2]
[359598997,1746176706945,-450.0,0.00019793,2]
[359598998,1746176706968,-1015.42,0.00019793,2]
[359598999,1746176706992,-450.0,0.00019793,2]
[359599000,1746176707016,-1240.2,0.00019794,2]
[359599001,1746176707040,-1566.09,0.00019794,2]
[359599002,1746176707065,-1636.9,0.00019794,2]
[359599003,1746176707094,-7678.28,0.00019794,2]
[359599004,1746176707121,-8564.13,0.00019794,2]
[359599005,1746176707149,-8644.77,0.00019794,2]
[359599006,1746176707173,-1128.72,0.00019794,2]
[359599007,1746176707198,-8103.17,0.00019794,2]
[359599008,1746176707222,-161591.11,0.00019794,2]
[359599009,1746176707245,-8249.73,0.00019794,2]
[359599010,1746176707269,-39387.41,0.00019794,2]
[359599011,1746176707299,-2450.74,0.00019794,2]
[359599012,1746176707324,-6952.54,0.00019794,2]
[359599013,1746176707349,-155.5769965,0.00019799,2]
[359599014,1746176707380,-857.19,0.00019799,2]
[359599015,1746176707408,-450.0,0.000198,2]
[359599016,1746176707432,-1189.74,0.000198,2]
[359599017,1746176707458,-450.0,0.000198,2]
[359599018,1746176707483,-450.0,0.000198,2]
[359599019,1746176707507,-661.9,0.000198,2]
[359599020,1746176707531,-1017.4,0.000198,2]
[359599021,1746176707553,-450.0,0.000198,2]
[359599022,1746176707577,-450.0,0.000198,2]
[359599023,1746176707599,-450.0,0.000198,2]
[359599024,1746176707624,-450.0,0.000198,2]
[359599025,1746176707648,-450.0,0.000198,2]
[359599026,1746176707672,-450.0,0.000198,2]
[359599027,1746176707696,-450.0,0.000198,2]
[359599028,1746176707720,-931.24,0.000198,2]
[359599029,1746176707743,-940.23,0.000198,2]
[359599030,1746176707787,-963.9,0.000198,2]
[359599031,1746176707813,-450.0,0.000198,2]
[359599032,1746176707839,-767.97,0.000198,2]
[359599033,1746176707866,-551.26,0.000198,2]
[359599034,1746176707895,-450.0,0.000198,2]
[359599035,1746176707921,-450.0,0.000198,2]
[359599036,1746176707947,-450.0,0.000198,2]
[359599037,1746176707972,-525.23,0.000198,2]
[359599038,1746176707997,-567.9,0.000198,2]
[359599039,1746176708022,-742.8,0.000198,2]
[359599040,1746176708047,-450.0,0.000198,2]
[359599041,1746176708071,-450.0,0.000198,2]
[359599042,1746176708095,-450.0,0.000198,2]
[359599043,1746176708118,-450.0,0.000198,2]
[359599044,1746176708144,-450.0,0.000198,2]
[359599045,1746176708167,-450.0,0.000198,2]
[359599046,1746176708190,-863.75,0.000198,2]
[359599047,1746176708215,-231.13531784,0.000198,2]
[359599048,1746176708238,-450.0,0.000198,2]
[359599049,1746176708263,-450.0,0.000198,2]
[359599050,1746176708287,-639.33,0.000198,2]
[359599051,1746176708311,-765.66,0.000198,2]
[359599052,1746176708337,-934.55,0.000198,2]
[359599053,1746176708720,-450.0,0.000198,2]
[359599054,1746176708743,-450.0,0.000198,2]
[359599055,1746176708766,-450.0,0.000198,2]
[359599056,1746176708790,-450.0,0.000198,2]
[359599057,1746176708816,-750.5,0.000198,2]
[359599058,1746176708838,-450.0,0.000198,2]
[359599059,1746176708860,-450.0,0.000198,2]
[359599060,1746176708887,-450.0,0.000198,2]
[359599061,1746176708911,-646.5,0.000198,2]
[359599062,1746176708934,-450.0,0.000198,2]
[359599063,1746176708959,-450.0,0.000198,2]
[359599064,1746176708982,-450.0,0.000198,2]
[359599065,1746176709005,-450.0,0.000198,2]
[359599066,1746176709028,-450.0,0.000198,2]
[359599067,1746176709051,-450.0,0.000198,2]
[359599068,1746176709074,-771.19,0.000198,2]
[359599069,1746176709097,-562.64,0.000198,2]
[359599070,1746176709120,-450.0,0.000198,2]
[359599071,1746176709143,-542.28,0.000198,2]
[359599072,1746176709166,-450.0,0.000198,2]
[359599073,1746176709194,-570.02,0.000198,2]
[359599074,1746176709219,-450.0,0.000198,2]
[359599075,1746176709241,-1129.59,0.000198,2]
[359599076,1746176709266,-904.43,0.000198,2]
[359599077,1746176709289,-1824.65,0.000198,2]
[359599078,1746176709312,-537.85,0.000198,2]
[359599079,1746176709335,-450.0,0.000198,2]
[359599080,1746176709362,-1032.09,0.000198,2]
[359599081,1746176709386,-899.86,0.000198,2]
[359599082,1746176709410,-450.0,0.000198,2]
[359599083,1746176709436,-548.72,0.000198,2]
[359599084,1746176709464,-450.0,0.000198,2]
[359599085,1746176709487,-576.42,0.000198,2]
[359599086,1746176709510,-604.74,0.000198,2]
[359599087,1746176709535,-765.72,0.000198,2]
[359599088,1746176709558,-450.0,0.000198,2]
[359599089,1746176709581,-450.0,0.000198,2]
[359599090,1746176709604,-873.76,0.000198,2]
[359599091,1746176709628,-2187.65,0.000198,2]
[359599092,1746176709653,-450.0,0.000198,2]
[359599093,1746176709677,-450.0,0.000198,2]
[359599094,1746176709701,-450.0,0.000198,2]
[359599095,1746176709739,-723.86,0.000198,2]
[359599096,1746176709766,-701.8,0.000198,2]
[359599097,1746176709790,-865.73,0.000198,2]
[359599098,1746176709816,-1539.8,0.000198,2]
[359599099,1746176709841,-2661.48,0.000198,2]
[359599100,1746176709866,-712.99,0.000198,2]
[359599101,1746176709890,-450.0,0.000198,2]
[359599102,1746176709915,-589.67,0.000198,2]
[359599103,1746176709940,-975.86,0.000198,2]
[359599104,1746176709965,-450.0,0.000198,2]
[359599105,1746176709988,-751.65,0.000198,2]
[359599106,1746176710015,-572.67,0.000198,2]
[359599107,1746176710040,-916.53,0.000198,2]
[359599108,1746176710065,-749.06,0.000198,2]
[359599109,1746176710089,-450.0,0.000198,2]
[359599110,1746176710113,-451.53,0.000198,2]
[359599111,1746176710138,-861.6,0.000198,2]
[359599112,1746176710162,-749.16,0.000198,2]
[359599113,1746176710185,-739.86,0.000198,2]
[359599114,1746176710214,-857.19,0.000198,2]
[359599115,1746176710239,-450.0,0.000198,2]
[359599116,1746176710264,-1543.27,0.000198,2]
[359599117,1746176710288,-450.0,0.000198,2]
[359599118,1746176710313,-618.71,0.000198,2]
[359599119,1746176710337,-450.0,0.000198,2]
[359599120,1746176710362,-739.55,0.000198,2]
[359599121,1746176710387,-1398.24,0.000198,2]
[359599122,1746176710409,-635.18,0.000198,2]
[359599123,1746176710433,-573.7,0.000198,2]
[359599124,1746176710459,-1184.26,0.000198,2]
[359599125,1746176710483,-450.0,0.000198,2]
[359599126,1746176710508,-930.02,0.000198,2]
[359599127,1746176710538,-450.0,0.000198,2]
[359599128,1746176710567,-1195.26,0.000198,2]
[359599129,1746176710592,-675.97,0.000198,2]
[359599130,1746176710617,-527.48,0.000198,2]
[359599131,1746176710644,-2570.78,0.000198,2]
[359599132,1746176710669,-450.0,0.000198,2]
[359599133,1746176710694,-765.3,0.000198,2]
[359599134,1746176710718,-866.23,0.000198,2]
[359599135,1746176710742,-450.0,0.000198,2]
[359599136,1746176710766,-866.47,0.000198,2]
[359599137,1746176710790,-450.0,0.00019803,2]
[359599138,1746176710815,-930.32,0.00019803,2]
[359599139,1746176710839,-450.0,0.00019803,2]
[359599140,1746176710862,-665.35,0.00019803,2]
[359599141,1746176710888,-450.0,0.00019803,2]
[359599142,1746176710912,-192.87765478,0.00019803,2]
[359599143,1746176710936,-450.0,0.00019803,2]
[359599144,1746176710960,-466.81,0.00019803,2]
[359599145,1746176710983,-450.0,0.00019803,2]
[359599146,1746176711006,-740.38,0.00019803,2]
[359599147,1746176711030,-376.15007156,0.00019803,2]
[359599148,1746176711180,-494.36,0.00019803,2]
[359599149,1746176711203,-485.71837721,0.00019803,2]
[359599150,1746176711226,-450.0,0.00019803,2]
[359599151,1746176711248,-450.0,0.00019803,2]
[359599152,1746176711270,-1000.0,0.00019803,2]
[359599153,1746176711292,-450.0,0.00019803,2]
[359599154,1746176711314,-450.0,0.00019803,2]
[359599155,1746176711339,-450.0,0.00019803,2]
[359599156,1746176711365,-450.0,0.00019803,2]
[359599157,1746176711389,-450.0,0.00019803,2]
[359599158,1746176711413,-450.0,0.00019803,2]
[359599159,1746176711435,-450.0,0.00019803,2]
[359599160,1746176711459,-450.0,0.00019803,2]
[359599161,1746176711482,-450.0,0.00019803,2]
[359599162,1746176711508,-745.06,0.00019803,2]
[359599163,1746176711532,-450.0,0.00019803,2]
[359599164,1746176711556,-550.03,0.00019803,2]
[359599165,1746176711578,-450.0,0.00019803,2]
[359599166,1746176711601,-450.0,0.00019803,2]
[359599167,1746176711624,-450.0,0.00019803,2]
[359599168,1746176711646,-450.0,0.00019803,2]
[359599169,1746176711669,-450.0,0.00019803,2]
[359599170,1746176711692,-598.02,0.00019803,2]
[359599171,1746176711715,-450.0,0.00019803,2]
[359599172,1746176711736,-450.0,0.00019803,2]
[359599173,1746176711758,-450.0,0.00019803,2]
[359599174,1746176711780,-450.0,0.00019803,2]
[359599175,1746176711803,-450.0,0.00019803,2]
[359599176,1746176711825,-450.0,0.00019803,2]
[359599177,1746176711847,-900.86,0.00019803,2]
[359599178,1746176711869,-450.0,0.00019803,2]
[359599179,1746176711893,-560.47449631,0.00019803,2]
[359599180,1746176711916,-545.63,0.00019803,2]
[359599181,1746176711940,-450.0,0.00019803,2]
[359599182,1746176711962,-450.0,0.00019803,2]
[359599183,1746176711984,-450.0,0.00019803,2]
[359599184,1746176712007,-450.0,0.00019803,2]
[359599185,1746176712029,-450.0,0.00019803,2]
[359599186,1746176712051,-450.0,0.00019803,2]
[359599187,1746176712073,-450.0,0.00019803,2]
[359599188,1746176712095,-450.0,0.00019803,2]
[359599189,1746176712118,-544.28,0.00019803,2]
[359599190,1746176712142,-1312.29,0.00019803,2]
[359599191,1746176712164,-543.84,0.00019803,2]
[359599192,1746176712185,-510.44,0.00019803,2]
[359599193,1746176712207,-450.0,0.00019803,2]
[359599194,1746176712229,-450.0,0.00019803,2]
[359599195,1746176712251,-450.0,0.00019803,2]
[359599196,1746176712273,-450.0,0.00019803,2]
[359599197,1746176712296,-450.0,0.00019803,2]
[359599198,1746176712318,-450.0,0.00019803,2]
[359599199,1746176712341,-450.0,0.00019803,2]
[359599200,1746176712365,-450.0,0.00019803,2]
[359599201,1746176712389,-450.0,0.00019803,2]
[359599202,1746176712411,-450.0,0.00019803,2]
[359599203,1746176712434,-450.0,0.00019803,2]
[359599204,1746176712460,-450.0,0.00019803,2]
[359599205,1746176712483,-450.0,0.00019803,2]
[359599206,1746176712507,-892.46,0.00019803,2]
[359599207,1746176712529,-450.0,0.00019803,2]
[359599208,1746176712552,-478.28,0.00019803,2]
[359599209,1746176712574,-450.0,0.00019803,2]
[359599210,1746176712595,-945.35,0.00019803,2]
[359599211,1746176712617,-939.66,0.00019803,2]
[359599212,1746176712639,-453.99,0.00019803,2]
[359599213,1746176712661,-450.0,0.00019803,2]
[359599214,1746176712684,-450.0,0.00019803,2]
[359599215,1746176712706,-719.96,0.00019803,2]
[359599216,1746176712729,-450.0,0.00019803,2]
[359599217,1746176712751,-450.0,0.00019803,2]
[359599218,1746176712773,-450.0,0.00019803,2]
[359599219,1746176712796,-450.0,0.00019803,2]
[359599220,1746176712820,-450.0,0.00019803,2]
[359599221,1746176712843,-450.0,0.00019803,2]
[359599222,1746176712866,-450.0,0.00019803,2]
[359599223,1746176712888,-1808.3,0.00019803,2]
[359599224,1746176712911,-450.0,0.00019803,2]
[359599225,1746176712934,-550.88,0.00019803,2]
[359599226,1746176712955,-450.0,0.00019803,2]
[359599227,1746176712979,-450.0,0.00019803,2]
[359599228,1746176713003,-517.22,0.00019803,2]
[359599229,1746176713028,-473.8258779,0.00019803,2]
[359599230,1746176713051,-450.0,0.00019803,2]
[359599231,1746176713073,-500.0,0.00019803,2]
[359599232,1746176713099,-450.0,0.00019803,2]
[359599233,1746176713121,-450.0,0.00019803,2]
[359599234,1746176713143,-450.0,0.00019803,2]
[359599235,1746176713165,-450.0,0.00019803,2]
[359599236,1746176713187,-450.0,0.00019803,2]
[359599237,1746176713209,-450.0,0.00019803,2]
[359599238,1746176713234,-450.0,0.00019803,2]
[359599239,1746176713256,-450.0,0.00019803,2]
[359599240,1746176713278,-450.0,0.00019803,2]
[359599241,1746176713300,-450.0,0.00019803,2]
[359599242,1746176713322,-450.0,0.00019803,2]
[359599243,1746176713344,-450.0,0.00019803,2]
[359599244,1746176713369,-450.0,0.00019803,2]
[359599245,1746176713392,-450.0,0.00019803,2]
[359599246,1746176713415,-450.0,0.00019803,2]
[359599247,1746176713438,-702.94,0.00019803,2]
[359599248,1746176713462,-450.0,0.00019803,2]
[359599249,1746176713483,-1040.19,0.00019803,2]
[359599250,1746176713504,-450.0,0.00019803,2]
[359599251,1746176713526,-450.0,0.00019803,2]
[359599252,1746176713548,-450.0,0.00019803,2]
[359599253,1746176713570,-450.0,0.00019803,2]
[359599254,1746176713591,-545.6,0.00019803,2]
[359599255,1746176713613,-269.56323255,0.00019803,2]
[359599256,1746176713636,-450.0,0.00019803,2]
[359599257,1746176713660,-450.0,0.00019803,2]
[359599258,1746176713683,-486.86,0.00019803,2]
[359599259,1746176713706,-450.0,0.00019803,2]
[359599260,1746176713728,-450.0,0.00019803,2]
[359599261,1746176713750,-450.0,0.00019803,2]
[359599262,1746176713771,-532.21,0.00019803,2]
[359599263,1746176713793,-450.0,0.00019803,2]
[359599264,1746176713825,-450.0,0.00019803,2]
[359599265,1746176713851,-450.0,0.00019803,2]
[359599266,1746176713874,-450.0,0.00019803,2]
[359599267,1746176713898,-500.0,0.00019803,2]
[359599268,1746176713921,-450.0,0.00019803,2]
[359599269,1746176713943,-393.33690544,0.00019803,2]
[359599270,1746176713965,-450.0,0.00019803,2]
[359599271,1746176713987,-450.0,0.00019803,2]
[359599272,1746176714009,-450.0,0.00019803,2]
[359599273,1746176714032,-1029.28,0.00019803,2]
[359599274,1746176714054,-450.0,0.00019803,2]
[359599275,1746176714076,-723.78,0.00019803,2]
[359599276,1746176714098,-450.0,0.00019803,2]
[359599277,1746176714122,-737.36,0.00019803,2]
[359599278,1746176714145,-915.85,0.00019803,2]
[359599279,1746176714168,-519.24,0.00019803,2]
[359599280,1746176714191,-450.0,0.00019803,2]
[359599281,1746176714213,-450.0,0.00019803,2]
[359599282,1746176714235,-450.0,0.00019803,2]
[359599283,1746176714259,-450.0,0.00019803,2]
[359599284,1746176714282,-450.0,0.00019803,2]
[359599285,1746176714305,-706.78,0.00019803,2]
[359599286,1746176714334,-450.0,0.00019803,2]
[359599287,1746176714360,-450.0,0.00019803,2]
[359599288,1746176714387,-450.0,0.00019803,2]
[359599289,1746176714411,-450.0,0.00019803,2]
[359599290,1746176714435,-450.0,0.00019803,2]
[359599291,1746176714461,-450.0,0.00019803,2]
[359599292,1746176714485,-450.0,0.00019803,2]
[359599293,1746176714507,-450.0,0.00019803,2]
[359599294,1746176714531,-500.0,0.00019803,2]
[359599295,1746176714554,-541.22,0.00019803,2]
[359599296,1746176714578,-300.0,0.00019803,2]
[359599297,1746176714604,-1366.26,0.00019803,2]
[359599298,1746176714631,-450.0,0.00019803,2]
[359599299,1746176714661,-767.13,0.00019803,2]
[359599300,1746176714687,-450.0,0.00019803,2]
[359599301,1746176714712,-450.0,0.00019803,2]
[359599302,1746176714738,-934.66,0.00019803,2]
[359599303,1746176714764,-466.79,0.00019803,2]
[359599304,1746176714789,-450.0,0.00019803,2]
[359599305,1746176714815,-461.67,0.00019803,2]
[359599306,1746176714845,-450.0,0.00019803,2]
[359599307,1746176714870,-450.0,0.00019803,2]
[359599308,1746176714897,-450.0,0.00019803,2]
[359599309,1746176714922,-450.0,0.00019803,2]
[359599310,1746176714947,-450.0,0.00019803,2]
[359599311,1746176714972,-450.0,0.00019803,2]
[359599312,1746176714997,-549.07465899,0.00019803,2]
[359599313,1746176715022,-566.40820346,0.00019803,2]
[359599314,1746176715046,-450.0,0.00019803,2]
[359599315,1746176715072,-1389.0,0.00019803,2]
[359599316,1746176715098,-450.0,0.00019803,2]
[359599317,1746176715123,-450.0,0.00019803,2]
[359599318,1746176715148,-450.0,0.00019803,2]
[359599319,1746176715173,-450.0,0.00019803,2]
[359599320,1746176715197,-824.09,0.00019803,2]
[359599321,1746176715222,-450.0,0.00019803,2]
[359599322,1746176715246,-477.99,0.00019803,2]
[359599323,1746176715271,-450.0,0.00019803,2]
[359599324,1746176715296,-450.0,0.00019803,2]
[359599325,1746176715322,-450.0,0.00019803,2]
[359599326,1746176715351,-450.0,0.00019803,2]
[359599327,1746176715380,-1733.29,0.00019803,2]
[359599328,1746176715406,-450.0,0.00019803,2]
[359599329,1746176715432,-450.0,0.00019803,2]
[359599330,1746176715457,-450.0,0.00019803,2]
[359599331,1746176715482,-251.35997441,0.00019803,2]
[359599332,1746176715508,-599.66,0.00019803,2]
[359599333,1746176715535,-450.0,0.00019803,2]
[359599334,1746176715561,-450.0,0.00019803,2]
[359599335,1746176715586,-450.0,0.00019803,2]
[359599336,1746176715611,-473.2,0.00019803,2]
[359599337,1746176715635,-450.0,0.00019803,2]
[359599338,1746176715662,-450.0,0.00019803,2]
[359599339,1746176715688,-450.0,0.00019803,2]
[359599340,1746176715715,-450.0,0.00019803,2]
[359599341,1746176715740,-450.0,0.00019803,2]
[359599342,1746176715766,-500.0,0.00019803,2]
[359599343,1746176715791,-450.0,0.00019803,2]
[359599344,1746176715816,-10546.84842488,0.00019808,2]
[359599345,1746176715841,-450.0,0.00019821,2]
[359599346,1746176715866,-450.0,0.00019821,2]
[359599347,1746176715890,-450.0,0.00019821,2]
[359599348,1746176715914,-450.0,0.00019821,2]
[359599349,1746176715940,-450.0,0.00019821,2]
[359599350,1746176715974,-450.0,0.00019821,2]
[359599351,1746176716007,-450.0,0.00019821,2]
[359599352,1746176716035,-450.0,0.00019821,2]
[359599353,1746176716062,-450.0,0.00019821,2]
[359599354,1746176716090,-450.0,0.00019821,2]
[359599355,1746176716118,-583.3351082,0.00019821,2]
[359599356,1746176716146,-699.78,0.00019821,2]
[359599357,1746176716175,-1565.19,0.00019821,2]
[359599358,1746176716206,-450.0,0.00019821,2]
[359599359,1746176716235,-450.0,0.00019821,2]
[359599360,1746176716263,-450.0,0.00019821,2]
[359599361,1746176716291,-564.27,0.00019821,2]
[359599362,1746176716317,-450.0,0.00019821,2]